[Event "FIDE Womens World Cup 2021"]
[Site "Sochi"]
[Date "2021.07.19"]
[Round "3.2"]
[White "Kosteniuk, Alexandra"]
[Black "Cramling, Pia"]
[Result "1/2-1/2"]
[ECO "B51"]
[WhiteElo "2472"]
[BlackElo "2459"]
[Annotator "ChessBase"]
[PlyCount "66"]
[EventDate "2021.07.12"]
[EventType "k.o."]
[EventCountry "RUS"]
[SourceTitle "playchess.com"]
[Source "ChessBase"]
[SourceQuality "1"]
[TimeControl "40/5400+30:1800+30"]

1. e4 {[%emt 0:00:05]} c5 {[%emt 0:00:06]} 2. Nf3 {[%emt 0:00:05]} d6 {[%emt 0:00:05]} 3. Bb5+ {[%emt 0:00:12]} Nd7 {[%emt 0:00:10]} 4. Ba4 {[%emt 0:00:17]} Ngf6 {[%emt 0:01:28]} 5. O-O {[%emt 0:00:45]} g6 {[%emt 0:02:38]} 6. Re1 {[%emt 0:02:46]} Bg7 {[%emt 0:00:17]} 7. c3 {[%emt 0:01:02]} O-O {[%emt 0:02:12]} 8. d4 {[%emt 0:00:22]} Nb6 {[%emt 0:07:56]} 9. Bc2 {[%emt 0:00:46]} cxd4 {[%emt 0:04:02]} 10. cxd4 {[%emt 0:00:50]} Bg4 {[%emt 0:01:33]} 11. Nbd2 {[%emt 0:04:45]} d5 {[%emt 0:06:55]} 12. e5 {[%emt 0:00:52]} Ne8 {[%emt 0:00:34]} 13. h3 {[%emt 0:03:28]} Bxf3 {[%emt 0:03:24]} 14. Nxf3 {[%emt 0:00:07]} Nc7 {[%emt 0:01:02]} 15. a4 {[%emt 0:05:50]} Nc4 {[%emt 0:05:03]} 16. h4 {[%emt 0:17:58]} Ne6 {[%emt 0:02:45]} 17. Ng5 {[%emt 0:03:31]} Nxg5 {[%emt 0:12:39]} 18. hxg5 {[%emt 0:01:50]} f6 {[%emt 0:01:56]} 19. b3 {[%emt 0:05:30]} Na5 {[%emt 0:00:23]} 20. gxf6 {[%emt 0:00:58]} exf6 {[%emt 0:00:07]} 21. Ba3 {[%emt 0:00:14]} Re8 {[%emt 0:00:37]} 22. Bd6 {[%emt 0:00:49]} Nc6 {[%emt 0:07:25]} 23. Qf3 {[%emt 0:03:15]} fxe5 {[%emt 0:05:09]} 24. Qxd5+ {[%emt 0:00:16]} Kh8 {[%emt 0:00:05]} 25. dxe5 {[%emt 0:00:14]} Nxe5 {[%emt 0:01:08]} 26. Rad1 {[%emt 0:04:06]} Nc6 {[%emt 0:02:58]} 27. Re4 {[%emt 0:12:03]} Rc8 {[%emt 0:16:49]} 28. Qf7 {[%emt 0:05:43]} Rxe4 {[%emt 0:09:14]} 29. Bxe4 {[%emt 0:00:04]} Nd4 {[%emt 0:00:57]} 30. Qxb7 {[%emt 0:01:27]} Rc3 {[%emt 0:02:47]} 31. Qb8 {[%emt 0:02:44]} Rc8 {[%emt 0:00:58]} 32. Qb7 {[%emt 0:00:04]} Rc3 {[%emt 0:00:58]} 33. Qb8 {[%emt 0:00:05]} Rc8 {[%emt 0:01:45]} 1/2-1/2

[Event "FIDE Womens World Cup 2021"]
[Site "Sochi"]
[Date "2021.07.19"]
[Round "3.2"]
[White "Khotenashvili, Bela"]
[Black "Assaubayeva, Bibisara"]
[Result "1/2-1/2"]
[ECO "A40"]
[WhiteElo "2471"]
[BlackElo "2389"]
[Annotator "ChessBase"]
[PlyCount "120"]
[EventDate "2021.07.12"]
[EventType "k.o."]
[EventCountry "RUS"]
[SourceTitle "playchess.com"]
[Source "ChessBase"]
[SourceQuality "1"]
[TimeControl "40/5400+30:1800+30"]

1. d4 {[%emt 0:00:06]} g6 {[%emt 0:00:05]} 2. c4 {[%emt 0:01:12]} Bg7 {[%emt 0:00:08]} 3. g3 {[%emt 0:00:10]} d6 {[%emt 0:00:59]} 4. Nc3 {[%emt 0:02:05]} Nc6 {[%emt 0:00:38]} 5. Nf3 {[%emt 0:01:47]} Bd7 {[%emt 0:00:12]} 6. Bg2 {[%emt 0:03:07]} Qc8 {[%emt 0:00:10]} 7. O-O {[%emt 0:13:28]} Bh3 {[%emt 0:00:33]} 8. e4 {[%emt 0:00:16]} h5 {[%emt 0:02:46]} 9. Bxh3 {[%emt 0:22:20]} Qxh3 {[%emt 0:00:30]} 10. Nd5 {[%emt 0:01:56]} Qd7 {[%emt 0:06:41]} 11. h4 {[%emt 0:01:46]} e6 {[%emt 0:05:17]} 12. Nc3 {[%emt 0:07:08]} Nf6 {[%emt 0:10:24]} 13. d5 {[%emt 0:07:49]} exd5 {[%emt 0:04:44]} 14. cxd5 {[%emt 0:02:12]} Ne7 {[%emt 0:09:00]} 15. Bf4 {[%emt 0:03:59]} O-O {[%emt 0:05:33]} 16. Rc1 {[%emt 0:01:02]} Ng4 {[%emt 0:02:43]} 17. Qb3 {[%emt 0:01:31]} c5 {[%emt 0:06:52]} 18. dxc6 {[%emt 0:00:31]} Nxc6 {[%emt 0:00:50]} 19. Rfd1 {[%emt 0:02:43]} Nce5 {[%emt 0:07:56]} 20. Nxe5 {[%emt 0:02:48]} Bxe5 {[%emt 0:02:59]} 21. Bxe5 {[%emt 0:07:23]} Nxe5 {[%emt 0:00:02]} 22. Nd5 {[%emt 0:00:08]} Kg7 {[%emt 0:03:03]} 23. Rc7 {[%emt 0:05:24]} Qg4 {[%emt 0:02:35]} 24. f4 {[%emt 0:00:17]} Nc6 {[%emt 0:01:28]} 25. Rd2 {[%emt 0:04:12]} Rac8 {[%emt 0:02:04]} 26. Qc3+ {[%emt 0:02:53]} Kh6 {[%emt 0:00:02]} 27. Qe3 {[%emt 0:00:30]} Rxc7 {[%emt 0:02:35]} 28. Nxc7 {[%emt 0:00:13]} Kh7 {[%emt 0:06:59]} 29. Rxd6 {[%emt 0:01:54]} Rd8 {[%emt 0:00:23]} 30. Rxd8 {[%emt 0:00:33]} Nxd8 {[%emt 0:00:01]} 31. Qd3 {[%emt 0:00:43]} Qc8 {[%emt 0:02:42]} 32. Qc3 {[%emt 0:00:56]} Qg4 {[%emt 0:04:53]} 33. Ne8 {[%emt 0:01:35]} Qd1+ {[%emt 0:00:02]} 34. Kf2 {[%emt 0:00:05]} Ne6 {[%emt 0:00:08]} 35. Nf6+ {[%emt 0:00:26]} Kh6 {[%emt 0:00:13]} 36. Ng4+ {[%emt 0:01:28]} Kh7 {[%emt 0:00:05]} 37. Ne3 {[%emt 0:00:33]} Qb1 {[%emt 0:02:31]} 38. Nd5 {[%emt 0:01:22]} Qd1 {[%emt 0:02:18]} 39. Nf6+ {[%emt 0:00:38]} Kh6 {[%emt 0:00:16]} 40. Ng4+ {[%emt 0:00:36]} Kh7 {[%emt 0:00:12]} 41. Ne3 {[%emt 0:14:22]} Qb1 {[%emt 0:01:49]} 42. f5 {[%emt 0:01:47]} Ng7 {[%emt 0:01:23]} 43. fxg6+ {[%emt 0:02:11]} Kxg6 {[%emt 0:00:57]} 44. Qc2 {[%emt 0:05:17]} Qxa2 {[%emt 0:04:56]} 45. e5+ {[%emt 0:00:01]} f5 {[%emt 0:00:21]} 46. exf6+ {[%emt 0:04:38]} Kxf6 {[%emt 0:00:15]} 47. Qc3+ {[%emt 0:00:07]} Kg6 {[%emt 0:00:51]} 48. Qd3+ {[%emt 0:01:33]} Kh6 {[%emt 0:00:24]} 49. Nc4 {[%emt 0:00:22]} b5 {[%emt 0:03:39]} 50. Qd2+ {[%emt 0:00:03]} Kh7 {[%emt 0:00:10]} 51. Nd6 {[%emt 0:00:27]} Qe6 {[%emt 0:00:52]} 52. Qd3+ {[%emt 0:00:10]} Kg8 {[%emt 0:00:42]} 53. Ne4 {[%emt 0:00:52]} Qf5+ {[%emt 0:01:04]} 54. Ke3 {[%emt 0:00:27]} Qe5 {[%emt 0:02:17]} 55. Qd8+ {[%emt 0:03:00]} Kh7 {[%emt 0:00:14]} 56. b4 {[%emt 0:00:44]} Nf5+ {[%emt 0:07:27]} 57. Kd3 {[%emt 0:00:01]} Nxg3 {[%emt 0:03:30]} 58. Ng5+ {[%emt 0:00:02]} Kg6 {[%emt 0:00:24]} 59. Qg8+ {[%emt 0:00:53]} Kf5 {[%emt 0:02:38]} 60. Qc8+ {[%emt 0:00:02]} Kf4 {[%emt 0:01:05]} 1/2-1/2

[Event "FIDE Womens World Cup 2021"]
[Site "Sochi"]
[Date "2021.07.19"]
[Round "3.2"]
[White "Paehtz, Elisabeth"]
[Black "Mammadova, Gulnar"]
[Result "1-0"]
[ECO "C44"]
[WhiteElo "2466"]
[BlackElo "2385"]
[Annotator "ChessBase"]
[PlyCount "131"]
[EventDate "2021.07.12"]
[EventType "k.o."]
[EventCountry "RUS"]
[SourceTitle "playchess.com"]
[Source "ChessBase"]
[SourceQuality "1"]
[TimeControl "40/5400+30:1800+30"]

1. e4 {[%emt 0:00:02]} e5 {[%emt 0:00:12]} 2. Nf3 {[%emt 0:00:04]} Nc6 {[%emt 0:00:08]} 3. d4 {[%emt 0:00:05]} exd4 {[%emt 0:00:09]} 4. Nxd4 {[%emt 0:00:05]} Nf6 {[%emt 0:00:16]} 5. Nxc6 {[%emt 0:00:05]} bxc6 {[%emt 0:00:07]} 6. Bd3 {[%emt 0:00:03]} d5 {[%emt 0:09:55]} 7. Qe2 {[%emt 0:00:04]} dxe4 {[%emt 0:04:36]} 8. Nc3 {[%emt 0:00:05]} Bb4 {[%emt 0:04:56]} 9. Bxe4 {[%emt 0:00:04]} Bxc3+ {[%emt 0:07:47]} 10. bxc3 {[%emt 0:00:04]} Nxe4 {[%emt 0:00:12]} 11. Qxe4+ {[%emt 0:00:04]} Qe7 {[%emt 0:00:03]} 12. Qxe7+ {[%emt 0:00:06]} Kxe7 {[%emt 0:00:01]} 13. Bf4 {[%emt 0:02:09]} Bf5 {[%emt 0:01:30]} 14. O-O-O {[%emt 0:00:48]} Rhc8 {[%emt 0:01:52]} 15. Rhe1+ {[%emt 0:04:50]} Be6 {[%emt 0:01:24]} 16. Rd4 {[%emt 0:04:08]} Kf8 {[%emt 0:01:11]} 17. Ra4 {[%emt 0:05:54]} a6 {[%emt 0:02:42]} 18. g3 {[%emt 0:12:12]} Ra7 {[%emt 0:06:48]} 19. Be3 {[%emt 0:02:10]} Raa8 {[%emt 0:00:12]} 20. c4 {[%emt 0:02:20]} f6 {[%emt 0:05:04]} 21. Kb2 {[%emt 0:02:06]} Rcb8+ {[%emt 0:03:35]} 22. Kc3 {[%emt 0:00:08]} Kf7 {[%emt 0:00:08]} 23. Ra5 {[%emt 0:01:11]} Re8 {[%emt 0:04:55]} 24. Rc5 {[%emt 0:06:41]} Bd7 {[%emt 0:00:02]} 25. Rd1 {[%emt 0:00:15]} Re7 {[%emt 0:00:08]} 26. Rb1 {[%emt 0:01:35]} g5 {[%emt 0:03:34]} 27. Ra5 {[%emt 0:03:01]} Bc8 {[%emt 0:03:58]} 28. Rh1 {[%emt 0:01:57]} Kg6 {[%emt 0:06:03]} 29. h4 {[%emt 0:02:23]} g4 {[%emt 0:03:03]} 30. Rd1 {[%emt 0:04:23]} Be6 {[%emt 0:03:58]} 31. Re1 {[%emt 0:01:52]} Bd7 {[%emt 0:02:07]} 32. Rd1 {[%emt 0:03:05]} Be6 {[%emt 0:02:40]} 33. Bf4 {[%emt 0:02:13]} Kf7 {[%emt 0:01:27]} 34. Rc5 {[%emt 0:01:34]} Bd7 {[%emt 0:00:27]} 35. Bxc7 {[%emt 0:01:11]} Be8 {[%emt 0:00:02]} 36. Bf4 {[%emt 0:00:35]} a5 {[%emt 0:03:48]} 37. Be3 {[%emt 0:02:20]} a4 {[%emt 0:03:09]} 38. a3 {[%emt 0:00:29]} Re4 {[%emt 0:02:56]} 39. Rf5 {[%emt 0:09:58]} Ke6 {[%emt 0:01:48]} 40. Rf4 {[%emt 0:00:04]} Bg6 {[%emt 0:00:30]} 41. Rxe4+ {[%emt 0:42:01]} Bxe4 {[%emt 0:30:02]} 42. Bf4 {[%emt 0:00:04]} h5 {[%emt 0:02:29]} 43. Rd4 {[%emt 0:04:03]} Bf3 {[%emt 0:01:20]} 44. Kb4 {[%emt 0:01:58]} Ra7 {[%emt 0:04:00]} 45. Rd8 {[%emt 0:02:10]} Be4 {[%emt 0:00:49]} 46. Kc3 {[%emt 0:06:33]} Ke7 {[%emt 0:03:42]} 47. Rh8 {[%emt 0:01:40]} Bg6 {[%emt 0:00:31]} 48. Be3 {[%emt 0:00:39]} Rb7 {[%emt 0:03:04]} 49. Ra8 {[%emt 0:00:00]} Rb1 {[%emt 0:00:00]} 50. Rxa4 {[%emt 0:00:00]} Ra1 {[%emt 0:00:00]} 51. Kb2 {[%emt 0:00:00]} Re1 {[%emt 0:00:00]} 52. Ra7+ {[%emt 0:00:00]} Ke8 {[%emt 0:00:00]} 53. Rc7 {[%emt 0:00:00]} Re2 {[%emt 0:00:00]} 54. Rxc6 {[%emt 0:00:00]} Rxc2+ {[%emt 0:00:00]} 55. Kb3 {[%emt 0:00:00]} Re2 {[%emt 0:00:00]} 56. Rxf6 {[%emt 0:00:00]} Bf7 {[%emt 0:00:00]} 57. a4 {[%emt 0:00:00]} Re1 {[%emt 0:00:00]} 58. a5 {[%emt 0:00:00]} Rb1+ {[%emt 0:00:00]} 59. Kc3 {[%emt 0:00:00]} Ra1 {[%emt 0:00:00]} 60. a6 {[%emt 0:00:00]} Ke7 {[%emt 0:00:00]} 61. Rb6 {[%emt 0:00:00]} Be8 {[%emt 0:00:00]} 62. Rh6 {[%emt 0:00:00]} Bf7 {[%emt 0:00:00]} 63. a7 {[%emt 0:00:00]} Be8 {[%emt 0:00:00]} 64. Kb2 {[%emt 0:00:00]} Ra4 {[%emt 0:00:00]} 65. Kb3 {[%emt 0:00:00]} Ra1 {[%emt 0:00:00]} 66. Bc5+ {[%emt 0:00:00]} 1-0

[Event "FIDE Womens World Cup 2021"]
[Site "Sochi"]
[Date "2021.07.19"]
[Round "3.2"]
[White "Stefanova, Antoaneta"]
[Black "Pogonina, Natalija"]
[Result "1-0"]
[ECO "C26"]
[WhiteElo "2463"]
[BlackElo "2469"]
[Annotator "ChessBase"]
[PlyCount "105"]
[EventDate "2021.07.12"]
[EventType "k.o."]
[EventCountry "RUS"]
[SourceTitle "playchess.com"]
[Source "ChessBase"]
[SourceQuality "1"]
[TimeControl "40/5400+30:1800+30"]

1. e4 {[%emt 0:00:04]} e5 {[%emt 0:00:20]} 2. Nc3 {[%emt 0:00:07]} Nf6 {[%emt 0:01:35]} 3. d4 {[%emt 0:00:15]} exd4 {[%emt 0:07:42]} 4. Qxd4 {[%emt 0:00:05]} Nc6 {[%emt 0:00:05]} 5. Qd3 {[%emt 0:00:05]} Bb4 {[%emt 0:09:29]} 6. Bd2 {[%emt 0:02:01]} O-O {[%emt 0:01:06]} 7. O-O-O {[%emt 0:02:04]} Re8 {[%emt 0:11:44]} 8. Nge2 {[%emt 0:02:39]} Bf8 {[%emt 0:10:31]} 9. f4 {[%emt 0:26:07]} d6 {[%emt 0:00:54]} 10. h3 {[%emt 0:05:08]} a5 {[%emt 0:14:27]} 11. g4 {[%emt 0:04:55]} a4 {[%emt 0:01:57]} 12. a3 {[%emt 0:08:52]} b5 {[%emt 0:03:28]} 13. Qxb5 {[%emt 0:11:34]} Na5 {[%emt 0:08:51]} 14. Ng3 {[%emt 0:07:58]} Bb7 {[%emt 0:03:16]} 15. Nd5 {[%emt 0:05:25]} Bc6 {[%emt 0:01:25]} 16. Qd3 {[%emt 0:03:57]} Nd7 {[%emt 0:03:38]} 17. Bb4 {[%emt 0:00:31]} Bb7 {[%emt 0:02:51]} 18. Qd2 {[%emt 0:00:33]} c6 {[%emt 0:01:12]} 19. Ne3 {[%emt 0:00:06]} c5 {[%emt 0:01:16]} 20. Bc3 {[%emt 0:00:52]} Nc6 {[%emt 0:04:54]} 21. Nef5 {[%emt 0:00:50]} Nd4 {[%emt 0:01:44]} 22. Nxd4 {[%emt 0:02:14]} cxd4 {[%emt 0:00:05]} 23. Qxd4 {[%emt 0:00:21]} Nc5 {[%emt 0:04:36]} 24. Bg2 {[%emt 0:06:39]} Qc7 {[%emt 0:00:22]} 25. Rhe1 {[%emt 0:00:26]} Ne6 {[%emt 0:01:24]} 26. Qe3 {[%emt 0:00:51]} Rac8 {[%emt 0:00:29]} 27. f5 {[%emt 0:04:02]} Nc5 {[%emt 0:00:18]} 28. Qd4 {[%emt 0:01:05]} d5 {[%emt 0:02:23]} 29. Nh5 {[%emt 0:03:05]} dxe4 {[%emt 0:01:37]} 30. Nf6+ {[%emt 0:01:54]} Kh8 {[%emt 0:00:58]} 31. Nxe8 {[%emt 0:00:04]} Rxe8 {[%emt 0:00:07]} 32. Kb1 {[%emt 0:00:29]} Kg8 {[%emt 0:01:00]} 33. Bf1 {[%emt 0:00:15]} Rc8 {[%emt 0:00:36]} 34. Bb5 {[%emt 0:00:44]} Qb6 {[%emt 0:00:33]} 35. Bc4 {[%emt 0:00:26]} Qc7 {[%emt 0:00:32]} 36. Ba2 {[%emt 0:00:24]} h6 {[%emt 0:00:30]} 37. h4 {[%emt 0:00:41]} Qf4 {[%emt 0:00:24]} 38. Rg1 {[%emt 0:00:25]} Rc7 {[%emt 0:00:31]} 39. Qd8 {[%emt 0:01:02]} e3 {[%emt 0:00:24]} 40. Rdf1 {[%emt 0:00:29]} Qh2 {[%emt 0:00:41]} 41. Bxg7 {[%emt 0:27:37]} Rc8 {[%emt 0:30:10]} 42. Qf6 {[%emt 0:00:13]} Nb3 {[%emt 0:00:36]} 43. Bxb3 {[%emt 0:00:23]} axb3 {[%emt 0:00:12]} 44. Bxf8 {[%emt 0:00:30]} bxc2+ {[%emt 0:00:48]} 45. Ka1 {[%emt 0:00:17]} Rxf8 {[%emt 0:00:35]} 46. g5 {[%emt 0:01:13]} h5 {[%emt 0:00:37]} 47. g6 {[%emt 0:00:18]} Bg2 {[%emt 0:00:12]} 48. Rc1 {[%emt 0:01:20]} e2 {[%emt 0:00:47]} 49. Qg5 {[%emt 0:00:28]} Bf1 {[%emt 0:00:32]} 50. gxf7+ {[%emt 0:01:35]} Kxf7 {[%emt 0:00:04]} 51. Qg6+ {[%emt 0:00:07]} Ke7 {[%emt 0:00:04]} 52. Qe6+ {[%emt 0:00:05]} Kd8 {[%emt 0:00:05]} 53. Rg7 {[%emt 0:00:06]} 1-0

[Event "FIDE Womens World Cup 2021"]
[Site "Sochi"]
[Date "2021.07.19"]
[Round "3.2"]
[White "Galliamova, Alisa"]
[Black "Kashlinskaya, Alina"]
[Result "1/2-1/2"]
[ECO "A01"]
[WhiteElo "2442"]
[BlackElo "2488"]
[Annotator "ChessBase"]
[PlyCount "133"]
[EventDate "2021.07.12"]
[EventType "k.o."]
[EventCountry "RUS"]
[SourceTitle "playchess.com"]
[Source "ChessBase"]
[SourceQuality "1"]
[TimeControl "40/5400+30:1800+30"]

1. b3 {[%emt 0:00:03]} d5 {[%emt 0:00:26]} 2. Bb2 {[%emt 0:00:12]} Bg4 {[%emt 0:01:23]} 3. Nf3 {[%emt 0:02:11]} Nd7 {[%emt 0:00:31]} 4. e3 {[%emt 0:00:28]} e6 {[%emt 0:08:00]} 5. h3 {[%emt 0:01:47]} Bh5 {[%emt 0:00:49]} 6. d3 {[%emt 0:00:07]} a5 {[%emt 0:04:06]} 7. Nc3 {[%emt 0:07:45]} c6 {[%emt 0:03:23]} 8. g4 {[%emt 0:07:04]} Bg6 {[%emt 0:00:28]} 9. Ne2 {[%emt 0:00:28]} a4 {[%emt 0:06:22]} 10. Bg2 {[%emt 0:15:29]} Ngf6 {[%emt 0:17:46]} 11. O-O {[%emt 0:06:31]} a3 {[%emt 0:03:41]} 12. Bc3 {[%emt 0:00:17]} Bd6 {[%emt 0:01:37]} 13. Rb1 {[%emt 0:03:45]} e5 {[%emt 0:02:59]} 14. Ng3 {[%emt 0:04:31]} h5 {[%emt 0:01:58]} 15. Nf5 {[%emt 0:03:34]} Bxf5 {[%emt 0:02:35]} 16. gxf5 {[%emt 0:00:04]} Qe7 {[%emt 0:03:15]} 17. Qe2 {[%emt 0:04:18]} h4 {[%emt 0:03:35]} 18. Nh2 {[%emt 0:12:18]} O-O-O {[%emt 0:03:58]} 19. b4 {[%emt 0:05:31]} Rdg8 {[%emt 0:01:12]} 20. b5 {[%emt 0:01:47]} c5 {[%emt 0:01:34]} 21. Kh1 {[%emt 0:06:19]} g6 {[%emt 0:00:48]} 22. fxg6 {[%emt 0:00:48]} Rxg6 {[%emt 0:00:08]} 23. Rg1 {[%emt 0:00:43]} Rhg8 {[%emt 0:00:54]} 24. Bf3 {[%emt 0:01:00]} Qe6 {[%emt 0:03:54]} 25. Rxg6 {[%emt 0:00:53]} Rxg6 {[%emt 0:00:05]} 26. Bg2 {[%emt 0:00:48]} e4 {[%emt 0:04:33]} 27. Rg1 {[%emt 0:02:56]} d4 {[%emt 0:01:48]} 28. Bd2 {[%emt 0:01:42]} dxe3 {[%emt 0:07:46]} 29. Qxe3 {[%emt 0:02:20]} Ne5 {[%emt 0:03:38]} 30. Bc1 {[%emt 0:02:57]} Qxa2 31. dxe4 {[%emt 0:01:39]} Qxc2 {[%emt 0:01:37]} 32. Qxa3 {[%emt 0:02:20]} Nxe4 {[%emt 0:02:57]} 33. Be3 {[%emt 0:00:27]} Nc4 {[%emt 0:01:48]} 34. Qa8+ {[%emt 0:02:06]} Bb8 {[%emt 0:00:08]} 35. Rc1 {[%emt 0:00:29]} Nxf2+ {[%emt 0:01:53]} 36. Bxf2 {[%emt 0:00:06]} Qxc1+ {[%emt 0:00:03]} 37. Nf1 {[%emt 0:00:09]} Rxg2 {[%emt 0:01:55]} 38. Kxg2 {[%emt 0:00:05]} Qg5+ {[%emt 0:01:10]} 39. Kh1 {[%emt 0:00:51]} Qd5+ {[%emt 0:02:36]} 40. Kg1 {[%emt 0:00:05]} Qg5+ {[%emt 0:00:54]} 41. Kh1 {[%emt 0:30:05]} Nd2 {[%emt 0:06:36]} 42. Nxd2 {[%emt 0:00:00]} Qxd2 {[%emt 0:00:33]} 43. Kg1 {[%emt 0:00:00]} Qd1+ {[%emt 0:02:18]} 44. Kg2 {[%emt 0:00:00]} Qd5+ {[%emt 0:00:08]} 45. Kg1 {[%emt 0:00:00]} Qf3 {[%emt 0:03:58]} 46. Bxh4 {[%emt 0:00:00]} Qf4 {[%emt 0:02:09]} 47. Bf2 {[%emt 0:00:00]} Qh2+ {[%emt 0:00:16]} 48. Kf1 {[%emt 0:00:00]} Qxh3+ {[%emt 0:00:05]} 49. Kg1 {[%emt 0:00:00]} Qg4+ {[%emt 0:00:17]} 50. Kh1 {[%emt 0:00:00]} Qh3+ {[%emt 0:03:47]} 51. Kg1 {[%emt 0:00:00]} f6 {[%emt 0:03:12]} 52. b6 {[%emt 0:00:00]} c4 {[%emt 0:01:04]} 53. Bc5 {[%emt 0:00:00]} Qg3+ {[%emt 0:01:28]} 54. Kf1 {[%emt 0:00:00]} Qd3+ {[%emt 0:00:10]} 55. Kg1 {[%emt 0:00:00]} Qd1+ {[%emt 0:06:13]} 56. Kf2 {[%emt 0:00:00]} Qd2+ {[%emt 0:00:12]} 57. Kf1 {[%emt 0:00:00]} Qd1+ {[%emt 0:01:23]} 58. Kf2 {[%emt 0:00:00]} c3 {[%emt 0:00:26]} 59. Qa3 {[%emt 0:00:00]} Qd2+ {[%emt 0:00:48]} 60. Kf3 {[%emt 0:00:00]} Qf4+ {[%emt 0:01:19]} 61. Ke2 {[%emt 0:00:00]} Qc4+ {[%emt 0:00:50]} 62. Kf2 {[%emt 0:00:23]} Kd7 {[%emt 0:00:51]} 63. Be3 {[%emt 0:01:20]} c2 {[%emt 0:01:03]} 64. Qa8 {[%emt 0:02:16]} Kc8 {[%emt 0:02:00]} 65. Qa3 {[%emt 0:00:17]} Kd7 {[%emt 0:00:11]} 66. Qa8 {[%emt 0:00:05]} Kc8 {[%emt 0:00:41]} 67. Qa3 {[%emt 0:00:04]} 1/2-1/2

[Event "FIDE Womens World Cup 2021"]
[Site "Sochi"]
[Date "2021.07.19"]
[Round "3.2"]
[White "Sebag, Marie"]
[Black "Tan, Zhongyi"]
[Result "0-1"]
[ECO "C49"]
[WhiteElo "2438"]
[BlackElo "2511"]
[Annotator "ChessBase"]
[PlyCount "129"]
[EventDate "2021.07.12"]
[EventType "k.o."]
[EventCountry "RUS"]
[SourceTitle "playchess.com"]
[Source "ChessBase"]
[SourceQuality "1"]
[TimeControl "40/5400+30:1800+30"]

1. e4 {[%emt 0:00:05]} e5 {[%emt 0:00:05]} 2. Nf3 {[%emt 0:00:05]} Nf6 {[%emt 0:00:06]} 3. Nc3 {[%emt 0:00:06]} Nc6 {[%emt 0:00:22]} 4. Bb5 {[%emt 0:00:08]} Bb4 {[%emt 0:00:23]} 5. O-O {[%emt 0:00:41]} O-O {[%emt 0:00:29]} 6. d3 {[%emt 0:00:46]} Bxc3 {[%emt 0:00:10]} 7. bxc3 {[%emt 0:00:05]} d6 {[%emt 0:00:04]} 8. Bg5 {[%emt 0:00:30]} Ne7 {[%emt 0:00:10]} 9. Nh4 {[%emt 0:02:15]} Ne8 {[%emt 0:01:54]} 10. Bc4 {[%emt 0:19:15]} Be6 {[%emt 0:01:28]} 11. Bb3 {[%emt 0:12:56]} a5 {[%emt 0:16:16]} 12. f4 {[%emt 0:13:20]} exf4 {[%emt 0:20:55]} 13. Rxf4 {[%emt 0:03:36]} Bxb3 {[%emt 0:00:07]} 14. Bxe7 {[%emt 0:00:14]} Qxe7 {[%emt 0:00:06]} 15. cxb3 {[%emt 0:13:41]} g6 {[%emt 0:01:20]} 16. Qd2 {[%emt 0:02:08]} Ng7 {[%emt 0:04:10]} 17. Raf1 {[%emt 0:00:29]} d5 {[%emt 0:02:01]} 18. exd5 {[%emt 0:04:09]} Qc5+ {[%emt 0:00:03]} 19. d4 {[%emt 0:00:44]} Qxd5 {[%emt 0:00:05]} 20. c4 {[%emt 0:00:25]} Qd6 {[%emt 0:00:04]} 21. Nf3 {[%emt 0:02:54]} Rae8 {[%emt 0:11:44]} 22. c5 {[%emt 0:08:44]} Qd5 {[%emt 0:01:04]} 23. Qxa5 {[%emt 0:02:48]} Re2 {[%emt 0:00:57]} 24. Qb5 {[%emt 0:02:40]} Rxa2 {[%emt 0:01:05]} 25. Qc4 {[%emt 0:00:19]} Rd8 {[%emt 0:03:02]} 26. Re1 {[%emt 0:00:59]} Ne6 {[%emt 0:05:20]} 27. Rh4 {[%emt 0:00:23]} Qxc4 {[%emt 0:02:53]} 28. bxc4 {[%emt 0:00:07]} Rc2 {[%emt 0:00:16]} 29. d5 {[%emt 0:00:56]} Nxc5 {[%emt 0:00:08]} 30. Ng5 {[%emt 0:02:06]} h6 {[%emt 0:05:43]} 31. Rxh6 {[%emt 0:01:32]} Rxc4 {[%emt 0:00:06]} 32. h4 {[%emt 0:01:19]} Rf8 {[%emt 0:05:43]} 33. Re7 {[%emt 0:02:59]} Ne4 {[%emt 0:01:31]} 34. Ne6 {[%emt 0:01:21]} Nf6 {[%emt 0:03:15]} 35. Rh8+ {[%emt 0:01:39]} Kxh8 {[%emt 0:00:07]} 36. Nxf8 {[%emt 0:00:02]} Kg8 {[%emt 0:01:25]} 37. Nd7 {[%emt 0:00:04]} Nxd5 {[%emt 0:03:10]} 38. Re5 {[%emt 0:00:38]} c6 {[%emt 0:00:22]} 39. h5 {[%emt 0:00:14]} gxh5 {[%emt 0:01:33]} 40. Rg5+ {[%emt 0:00:26]} Kh7 {[%emt 0:00:07]} 41. Rxh5+ {[%emt 0:30:07]} Kg6 {[%emt 0:30:17]} 42. Rh8 {[%emt 0:00:04]} f6 {[%emt 0:00:20]} 43. Rb8 {[%emt 0:01:37]} b5 {[%emt 0:00:11]} 44. Rb7 {[%emt 0:00:08]} Rc2 {[%emt 0:00:25]} 45. Nb8 {[%emt 0:00:27]} b4 {[%emt 0:01:33]} 46. Na6 {[%emt 0:00:21]} c5 {[%emt 0:00:24]} 47. Rb5 {[%emt 0:00:24]} Nc3 {[%emt 0:00:15]} 48. Rb6 {[%emt 0:02:09]} Ne4 {[%emt 0:01:29]} 49. Rb5 {[%emt 0:00:21]} f5 {[%emt 0:00:34]} 50. Kh2 {[%emt 0:00:19]} Kg5 {[%emt 0:00:06]} 51. Kh3 {[%emt 0:01:11]} Rc1 {[%emt 0:00:21]} 52. Kh2 {[%emt 0:00:04]} Kg4 {[%emt 0:00:38]} 53. Nxc5 {[%emt 0:01:03]} Rxc5 {[%emt 0:00:44]} 54. Rxb4 {[%emt 0:00:03]} Rc2 {[%emt 0:00:15]} 55. Ra4 {[%emt 0:00:29]} Re2 {[%emt 0:00:06]} 56. Ra8 {[%emt 0:00:08]} Nf6 {[%emt 0:01:48]} 57. Rf8 {[%emt 0:00:29]} Kg5 {[%emt 0:00:20]} 58. Kg3 {[%emt 0:00:23]} Re3+ {[%emt 0:00:43]} 59. Kf2 {[%emt 0:00:05]} Ng4+ {[%emt 0:00:04]} 60. Kf1 {[%emt 0:00:03]} Kf4 {[%emt 0:00:20]} 61. Rh8 {[%emt 0:00:15]} Ra3 {[%emt 0:00:45]} 62. Rh4 {[%emt 0:01:25]} Ra1+ {[%emt 0:00:07]} 63. Ke2 {[%emt 0:00:05]} Kg3 {[%emt 0:00:06]} 64. Rh5 {[%emt 0:00:05]} Ra5 {[%emt 0:00:34]} 65. Ke1 0-1